fUST/lending_fUST_20240825
["ID","MTS","AMOUNT","RATE_DAILY","PERIOD"]
[335824675,1724515232202,200.0,0.00021339,120]
[335824677,1724515411868,200.0,0.0002149,120]
[335824680,1724515471947,200.0,0.00025661,120]
[335824684,1724515559160,-250.3521509,0.000122,2]
[335824685,1724515559183,-93.7260125,0.00012482,2]
[335824695,1724515608131,-78.1382675,0.00012482,2]
[335824696,1724515608153,-170.95635902,0.00012516,2]
[335824697,1724515628112,-171.86428,0.00012563,2]
[335824698,1724515628136,-305.46798566,0.00012629,2]
[335824699,1724515631101,-162.34767478,0.00012629,2]
[335824700,1724515639109,-966.22020061,0.00012629,2]
[335824701,1724515639148,-413.47555682,0.00012629,2]
[335824702,1724515643103,-419.80324252,0.00012629,2]
[335824703,1724515652139,-365.42400066,0.00012629,2]
[335824704,1724515652477,200.0,0.0002281,120]
[335824769,1724515797935,5000.0,0.00025,60]
[335824786,1724515832386,-2222.94016256,0.00012551,2]
[335824788,1724515832396,-1.58944832,0.00012644,2]
[335824790,1724515832408,-170.27483168,0.00012644,2]
[335824792,1724515832417,-83.63509037,0.00012726,2]
[335824812,1724515838324,-88.22918963,0.00012726,2]
[335824814,1724515838334,-171.86428,0.00012807,2]
[335824817,1724515838344,-355.162656,0.00012877,2]
[335824818,1724515838353,-171.86428,0.00012888,2]
[335824820,1724515838363,-262.91670572,0.00012898,2]
[335824822,1724515838372,-154.72922386,0.00012898,2]
[335824824,1724515838381,-346.46491659,0.00012934,2]
[335824825,1724515838391,-172.05557957,0.00012934,2]
[335824826,1724515838400,-184.19295926,0.00012934,2]
[335824827,1724515838410,-544.2854961,0.00012934,2]
[335824828,1724515838420,-171.86428,0.0001297,2]
[335824829,1724515838432,-160.52328625,0.00012985,2]
[335824830,1724515838442,-300.0,0.00012988,2]
[335824831,1724515838451,-180.73282911,0.00012989,2]
[335824832,1724515838462,-153.0,0.00013014,2]
[335824833,1724515838471,-155.23257901,0.00013025,2]
[335824834,1724515838484,-211.57990216,0.00013051,2]
[335824835,1724515838493,-171.86428,0.00013051,2]
[335824836,1724515838504,-415.4307185,0.00013078,2]
[335824837,1724515838515,-300.0,0.00013099,2]
[335824838,1724515838527,-409.2733729,0.000131,2]
[335824839,1724515838538,-207.7300879,0.000131,2]
[335824840,1724515838549,-207.7300879,0.000131,2]
[335824841,1724515838560,-223.9898337,0.000131,2]
[335824842,1724515838571,-153.0,0.000131,2]
[335824843,1724515838580,-171.86428,0.00013132,2]
[335824844,1724515838589,-306.0,0.00013151,2]
[335824845,1724515838598,-153.0,0.00013151,2]
[335824846,1724515838608,-207.7006306,0.00013151,2]
[335824847,1724515838619,-409.2733729,0.00013151,2]
[335824848,1724515838630,-409.2733729,0.00013178,2]
[335824849,1724515838640,-153.0,0.00013178,2]
[335824850,1724515838651,-153.0,0.00013178,2]
[335824851,1724515838663,-284.584462,0.00013178,2]
[335824852,1724515838673,-409.2733729,0.00013178,2]
[335824853,1724515838684,-409.2733729,0.00013178,2]
[335824854,1724515838694,-500.0,0.00013179,2]
[335824855,1724515838704,-207.7300879,0.00013278,2]
[335824857,1724515838714,-409.2733729,0.00013278,2]
[335824858,1724515838725,-409.2733729,0.00013342,2]
[335824859,1724515838737,-409.2733729,0.00013342,2]
[335824860,1724515838748,-409.2733729,0.00013342,2]
[335824861,1724515838759,-409.2733729,0.00013342,2]
[335824862,1724515838770,-465.04088967,0.00013355,2]
[335824863,1724515838780,-306.0,0.00013425,2]
[335824864,1724515838791,-306.0,0.00013425,2]
[335824865,1724515838802,-306.0,0.00013425,2]
[335824866,1724515838812,-207.7300879,0.00013425,2]
[335824867,1724515838824,-207.7300879,0.00013425,2]
[335824868,1724515838835,-207.7300879,0.00013425,2]
[335824869,1724515838849,-207.7300879,0.00013425,2]
[335824870,1724515838859,-207.7300879,0.00013425,2]
[335824871,1724515838870,-415.2803856,0.00013425,2]
[335824872,1724515838880,-207.7300879,0.00013425,2]
[335824873,1724515838891,-207.7300879,0.00013425,2]
[335824874,1724515838901,-415.4307185,0.00013425,2]
[335824875,1724515838910,-203.475615,0.00013425,2]
[335824876,1724515838922,-494.667639,0.00013496,2]
[335824877,1724515838938,-154.72922386,0.00013497,2]
[335824878,1724515838948,-3328.18055059,0.00013499,2]
[335824879,1724515838958,-306.0,0.00013562,2]
[335824880,1724515838968,-547.61691789,0.0001358,2]
[335824881,1724515838979,-547.61691789,0.00013585,2]
[335824883,1724515838988,-530.85886373,0.00013588,2]
[335824884,1724515838999,-547.61691789,0.00013589,2]
[335824885,1724515839008,-547.61691789,0.00013594,2]
[335824886,1724515839020,-174.92435112,0.00013596,2]
[335824887,1724515839031,-862.74516786,0.00013597,2]
[335824888,1724515839042,-547.61691789,0.00013598,2]
[335824889,1724515839054,-2853.48642532,0.00013598,2]
[335824890,1724515839064,-40000.0,0.00013598,2]
[335824891,1724515839075,-215.62694452,0.00013599,2]
[335824892,1724515839085,-330.34591361,0.00013599,2]
[335824893,1724515839095,-153.0,0.000136,2]
[335824894,1724515839106,-243.2101,0.0001363,2]
[335824895,1724515839115,-1416.0,0.00013646,2]
[335824896,1724515839125,-5720.57521366,0.00013656,2]
[335824897,1724515839135,-185702.87402881,0.00013667,2]
[335824898,1724515839144,-166167.50719769,0.00013668,2]
[335824899,1724515839158,-2765.09423726,0.00013668,2]
[335824900,1724515839196,-505.49952993,0.00013668,2]
[335824901,1724515839208,-726.88,0.00013668,2]
[335824929,1724515840519,-308051.17701412,0.00013668,2]
[335824930,1724515840529,-500.0,0.00013673,2]
[335824931,1724515840539,-350.02199508,0.00013673,2]
[335824932,1724515840549,-500.0,0.00013673,2]
[335824933,1724515840559,-160.0,0.00013673,2]
[335824934,1724515840569,-500.0,0.00013673,2]
[335824935,1724515840579,-500.0,0.00013673,2]
[335824936,1724515840588,-170.27890073,0.00013673,2]
[335824937,1724515840598,-500.0,0.00013673,2]
[335824938,1724515840607,-600.0,0.00013676,2]
[335824939,1724515840617,-155.0,0.0001368,2]
[335824940,1724515840627,-413.79261446,0.00013688,2]
[335824941,1724515840636,-11178.88517804,0.00013696,2]
[335824942,1724515840646,-493.47055315,0.00013697,2]
[335824944,1724515840655,-154.87881542,0.00013697,2]
[335824946,1724515840667,-520.80380986,0.00013697,2]
[335824947,1724515840676,-321.6055419,0.00013697,2]
[335824948,1724515840687,-8925.5237881,0.00013697,2]
[335824949,1724515840696,-430.8866929,0.00013698,2]
[335824951,1724515840706,-500.0,0.00013698,2]
[335824952,1724515840717,-500.0,0.00013698,2]
[335824953,1724515840728,-726.35,0.00013698,2]
[335824954,1724515840740,-500.0,0.00013698,2]
[335824955,1724515840753,-155.12815248,0.00013698,2]
[335824956,1724515840764,-329.47573755,0.00013698,2]
[335824957,1724515840773,-211.5927313,0.00013698,2]
[335824958,1724515840783,-500.0,0.00013698,2]
[335824959,1724515840793,-500.0,0.00013698,2]
[335824960,1724515840804,-504.53621322,0.00013698,2]
[335824961,1724515840816,-500.0,0.00013698,2]
[335824962,1724515840830,-505.53699037,0.00013698,2]
[335824963,1724515840841,-500.0,0.00013698,2]
[335824964,1724515840856,-500.0,0.00013698,2]
[335824965,1724515840867,-500.0,0.00013698,2]
[335824966,1724515840877,-543.53,0.00013698,2]
[335824967,1724515840887,-501.33411364,0.00013698,2]
[335824968,1724515840897,-500.0,0.00013698,2]
[335824969,1724515840906,-500.0,0.00013698,2]
[335824970,1724515840919,-500.0,0.00013698,2]
[335824971,1724515840932,-513.24810199,0.00013698,2]
[335824972,1724515840942,-500.0,0.00013698,2]
[335824973,1724515840953,-500.0,0.00013698,2]
[335824974,1724515840964,-500.0,0.00013698,2]
[335824975,1724515840974,-500.0,0.00013698,2]
[335824976,1724515840984,-711.38,0.00013698,2]
[335824977,1724515840994,-500.0,0.00013698,2]
[335824978,1724515841006,-525.41,0.00013698,2]
[335824979,1724515841017,-500.0,0.00013698,2]
[335824980,1724515841028,-500.0,0.00013698,2]
[335824981,1724515841039,-762.56,0.00013698,2]
[335824982,1724515841051,-500.0,0.00013698,2]
[335824983,1724515841063,-500.0,0.00013698,2]
[335824984,1724515841073,-500.0,0.00013698,2]
[335824985,1724515841083,-866.82,0.00013698,2]
[335824986,1724515841093,-500.0,0.00013698,2]
[335824987,1724515841102,-500.0,0.00013698,2]
[335824988,1724515841112,-547.22665791,0.00013698,2]
[335824989,1724515841122,-543.36,0.00013698,2]
[335824990,1724515841132,-500.0,0.00013698,2]
[335824991,1724515841141,-500.0,0.00013698,2]
[335824992,1724515841151,-500.0,0.00013698,2]
[335824993,1724515841160,-500.0,0.00013698,2]
[335824994,1724515841170,-500.0,0.00013698,2]
[335824995,1724515841180,-500.0,0.00013698,2]
[335824996,1724515841190,-601.53830752,0.00013698,2]
[335824997,1724515841199,-500.0,0.00013698,2]
[335824998,1724515841211,-500.0,0.00013698,2]
[335824999,1724515841221,-500.0,0.00013698,2]
[335825000,1724515841230,-676.37,0.00013698,2]
[335825001,1724515841240,-500.0,0.00013698,2]
[335825002,1724515841250,-500.0,0.00013698,2]
[335825003,1724515841259,-691.22,0.00013698,2]
[335825004,1724515841273,-317.59539575,0.00013698,2]
[335825005,1724515841282,-500.0,0.00013698,2]
[335825006,1724515841292,-500.0,0.00013698,2]
[335825007,1724515841301,-2199.63,0.00013698,2]
[335825008,1724515841311,-500.0,0.00013698,2]
[335825009,1724515841320,-500.0,0.00013698,2]
[335825010,1724515841331,-500.0,0.00013698,2]
[335825011,1724515841340,-500.0,0.00013698,2]
[335825012,1724515841350,-500.0,0.00013698,2]
[335825013,1724515841359,-500.0,0.00013698,2]
[335825014,1724515841368,-500.0,0.00013698,2]
[335825015,1724515841377,-520.07231296,0.00013698,2]
[335825016,1724515841387,-500.0,0.00013698,2]
[335825018,1724515841397,-500.0,0.00013698,2]
[335825019,1724515841406,-500.0,0.00013698,2]
[335825020,1724515841416,-500.0,0.00013698,2]
[335825021,1724515841425,-720.16,0.00013698,2]
[335825022,1724515841436,-500.0,0.00013698,2]
[335825023,1724515841446,-500.0,0.00013698,2]
[335825024,1724515841455,-500.0,0.00013698,2]
[335825025,1724515841465,-534.63057297,0.00013698,2]
[335825026,1724515841474,-500.0,0.00013698,2]
[335825027,1724515841483,-500.0,0.00013698,2]
[335825028,1724515841492,-500.0,0.00013698,2]
[335825029,1724515841502,-500.0,0.00013698,2]
[335825030,1724515841512,-500.0,0.00013698,2]
[335825031,1724515841521,-622.67,0.00013698,2]
[335825032,1724515841531,-501.67479403,0.00013698,2]
[335825033,1724515841541,-416.90936469,0.00013698,2]
[335825034,1724515841550,-500.0,0.00013698,2]
[335825035,1724515841561,-500.0,0.00013698,2]
[335825036,1724515841571,-500.0,0.00013698,2]
[335825037,1724515841581,-500.0,0.00013698,2]
[335825038,1724515841590,-500.0,0.00013698,2]
[335825039,1724515841600,-500.0,0.00013698,2]
[335825040,1724515841609,-500.0,0.00013698,2]
[335825041,1724515841619,-500.0,0.00013698,2]
[335825042,1724515841630,-500.0,0.00013698,2]
[335825043,1724515841641,-500.0,0.00013698,2]
[335825044,1724515841652,-500.0,0.00013698,2]
[335825045,1724515841663,-500.0,0.00013698,2]
[335825046,1724515841673,-786.75,0.00013698,2]
[335825047,1724515841683,-500.0,0.00013698,2]
[335825048,1724515841692,-500.0,0.00013698,2]
[335825049,1724515841703,-500.0,0.00013698,2]
[335825050,1724515841712,-500.0,0.00013698,2]
[335825051,1724515841722,-500.0,0.00013698,2]
[335825052,1724515841731,-500.0,0.00013698,2]
[335825053,1724515841741,-500.0,0.00013698,2]
[335825054,1724515841750,-515.1272377,0.00013698,2]
[335825055,1724515841760,-500.0,0.00013698,2]
[335825056,1724515841769,-500.0,0.00013698,2]
[335825057,1724515841778,-500.0,0.00013698,2]
[335825058,1724515841788,-512.44720167,0.00013698,2]
[335825059,1724515841797,-500.0,0.00013698,2]
[335825060,1724515841806,-500.0,0.00013698,2]
[335825061,1724515841816,-500.0,0.00013698,2]
[335825062,1724515841826,-500.0,0.00013698,2]
[335825063,1724515841836,-500.0,0.00013698,2]
[335825064,1724515841847,-500.0,0.00013698,2]
[335825065,1724515841859,-500.0,0.00013698,2]
[335825066,1724515841869,-500.0,0.00013698,2]
[335825067,1724515841879,-500.0,0.00013698,2]
[335825068,1724515841889,-500.0,0.00013698,2]
[335825069,1724515841898,-500.0,0.00013698,2]
[335825070,1724515841908,-500.0,0.00013698,2]
[335825071,1724515841918,-500.0,0.00013698,2]
[335825072,1724515841928,-500.0,0.00013698,2]
[335825073,1724515841937,-500.0,0.00013698,2]
[335825074,1724515841948,-500.0,0.00013698,2]
[335825076,1724515841957,-500.0,0.00013698,2]
[335825077,1724515841967,-613.11,0.00013698,2]
[335825078,1724515841977,-427.47475264,0.00013698,2]
[335825079,1724515841986,-500.0,0.00013698,2]
[335825080,1724515841996,-500.0,0.00013698,2]
[335825081,1724515842005,-500.0,0.00013698,2]
[335825082,1724515842015,-516.55611504,0.00013698,2]
[335825083,1724515842025,-500.0,0.00013698,2]
[335825084,1724515842035,-500.0,0.00013698,2]
[335825085,1724515842044,-500.0,0.00013698,2]
[335825086,1724515842053,-500.0,0.00013698,2]
[335825087,1724515842063,-500.0,0.00013698,2]
[335825088,1724515842072,-500.0,0.00013698,2]
[335825089,1724515842081,-770.08,0.00013698,2]
[335825090,1724515842091,-233.55218484,0.00013698,2]
[335825091,1724515842101,-500.0,0.00013698,2]
[335825092,1724515842111,-500.42181622,0.00013698,2]
[335825093,1724515842120,-500.97004959,0.00013698,2]
[335825094,1724515842131,-500.0,0.00013698,2]
[335825095,1724515842140,-500.0,0.00013698,2]
[335825096,1724515842150,-300.12094391,0.00013698,2]
[335825097,1724515842160,-1827.69,0.00013698,2]
[335825098,1724515842170,-687.44,0.00013698,2]
[335825099,1724515842180,-602.66,0.00013698,2]
[335825100,1724515842190,-500.0,0.00013698,2]
[335825101,1724515842200,-505.43898382,0.00013698,2]
[335825102,1724515842210,-500.0,0.00013698,2]
[335825103,1724515842221,-500.0,0.00013698,2]
[335825104,1724515842232,-500.0,0.00013698,2]
[335825105,1724515842244,-500.0,0.00013698,2]
[335825106,1724515842254,-500.0,0.00013698,2]
[335825107,1724515842264,-500.0,0.00013698,2]
[335825108,1724515842273,-500.0,0.00013698,2]
[335825109,1724515842282,-857.4,0.00013698,2]
[335825110,1724515842292,-500.0,0.00013698,2]
[335825111,1724515842303,-726.68,0.00013698,2]
[335825112,1724515842313,-500.0,0.00013698,2]
[335825113,1724515842324,-1179.83,0.00013698,2]
[335825114,1724515842336,-500.0,0.00013698,2]
[335825115,1724515842346,-500.0,0.00013698,2]
[335825116,1724515842357,-500.0,0.00013698,2]
[335825117,1724515842366,-500.0,0.00013698,2]
[335825118,1724515842376,-500.0,0.00013698,2]
[335825119,1724515842385,-260.0,0.00013698,2]
[335825120,1724515842394,-730.4,0.00013698,2]
[335825121,1724515842403,-500.0,0.00013698,2]
[335825122,1724515842413,-500.0,0.00013698,2]
[335825123,1724515842422,-258.0,0.00013698,2]
[335825124,1724515842432,-500.0,0.00013698,2]
[335825125,1724515842443,-943.47,0.00013698,2]
[335825126,1724515842452,-500.0,0.00013698,2]
[335825127,1724515842461,-500.0,0.00013698,2]
[335825128,1724515842470,-500.0,0.00013698,2]
[335825129,1724515842480,-908.74,0.00013698,2]
[335825130,1724515842490,-845.9,0.00013698,2]
[335825131,1724515842499,-500.0,0.00013698,2]
[335825132,1724515842509,-500.0,0.00013698,2]
[335825133,1724515842518,-500.0,0.00013698,2]
[335825134,1724515842528,-593.93,0.00013698,2]
[335825135,1724515842538,-500.0,0.00013698,2]
[335825136,1724515842549,-500.0,0.00013698,2]
[335825137,1724515842558,-500.0,0.00013698,2]
[335825138,1724515842569,-821.97,0.00013698,2]
[335825139,1724515842578,-500.0,0.00013698,2]
[335825140,1724515842588,-568.21022219,0.00013698,2]
[335825141,1724515842597,-500.0,0.00013698,2]
[335825142,1724515842607,-532.83,0.00013698,2]
[335825143,1724515842617,-500.0,0.00013698,2]
[335825144,1724515842627,-2740.01,0.00013698,2]
[335825145,1724515842637,-500.0,0.00013698,2]
[335825146,1724515842647,-500.0,0.00013698,2]
[335825147,1724515842658,-500.0,0.00013698,2]
[335825148,1724515842669,-500.0,0.00013698,2]
[335825149,1724515842680,-500.0,0.00013698,2]
[335825150,1724515842689,-500.0,0.00013698,2]
[335825151,1724515842699,-809.62,0.00013698,2]
[335825152,1724515842709,-500.0,0.00013698,2]
[335825153,1724515842718,-500.0,0.00013698,2]
[335825154,1724515842728,-500.0,0.00013698,2]
[335825155,1724515842737,-500.0,0.00013698,2]
[335825156,1724515842747,-500.0,0.00013698,2]
[335825158,1724515842756,-500.0,0.00013698,2]
[335825159,1724515842765,-500.0,0.00013698,2]
[335825160,1724515842774,-500.0,0.00013698,2]
[335825161,1724515842784,-500.0,0.00013698,2]
[335825162,1724515842793,-500.0,0.00013698,2]
[335825163,1724515842802,-500.0,0.00013698,2]
[335825164,1724515842812,-500.0,0.00013698,2]
[335825165,1724515842822,-500.0,0.00013698,2]
[335825166,1724515842831,-500.0,0.00013698,2]
[335825167,1724515842841,-500.0,0.00013698,2]
[335825168,1724515842855,-500.0,0.00013698,2]
[335825169,1724515842866,-429.32592925,0.00013698,2]
[335825171,1724515842895,-70.67407075,0.00013698,2]
[335825173,1724515842905,-247.16755298,0.00013698,2]
[335825175,1724515842919,-252.83244702,0.00013698,2]
[335825177,1724515842932,-7.51970386,0.00013698,2]
[335825214,1724515843357,-492.48029614,0.00013698,2]
[335825215,1724515843366,-500.0,0.00013698,2]
[335825216,1724515843375,-500.0,0.00013698,2]
[335825217,1724515843384,-500.0,0.00013698,2]
[335825218,1724515843393,-500.0,0.00013698,2]
[335825219,1724515843403,-500.0,0.00013698,2]
[335825220,1724515843412,-500.0,0.00013698,2]
[335825221,1724515843422,-444.82679672,0.00013698,2]
[335825222,1724515843432,-500.0,0.00013698,2]
[335825225,1724515843442,-500.0,0.00013698,2]
[335825227,1724515843451,-500.0,0.00013698,2]
[335825229,1724515843461,-559.31,0.00013698,2]
[335825231,1724515843470,-739.59,0.00013698,2]
[335825233,1724515843479,-1173.74,0.00013698,2]
[335825235,1724515843489,-500.0,0.00013698,2]
[335825237,1724515843498,-533.6,0.00013698,2]
[335825239,1724515843507,-500.0,0.00013698,2]
[335825241,1724515843517,-150.0,0.00013698,2]
[335825262,1724515843718,-614.01,0.00013698,2]
[335825264,1724515843729,-500.0,0.00013698,2]
[335825267,1724515843740,-807.49,0.00013698,2]
[335825269,1724515843750,-698.16,0.00013698,2]
[335825271,1724515843761,-500.0,0.00013698,2]
[335825273,1724515843771,-676.05,0.00013698,2]
[335825275,1724515843782,-500.0,0.00013698,2]
[335825277,1724515843791,-613.01,0.00013698,2]
[335825279,1724515843801,-2462.71,0.00013698,2]
[335825281,1724515843811,-500.0,0.00013698,2]
[335825284,1724515843824,-500.0,0.00013698,2]
[335825286,1724515843835,-536.7811588,0.00013698,2]
[335825288,1724515843846,-500.0,0.00013698,2]
[335825290,1724515843861,-500.0,0.00013698,2]
[335825292,1724515843872,-500.0,0.00013698,2]
[335825294,1724515843882,-790.38,0.00013698,2]
[335825296,1724515843893,-552.22,0.00013698,2]
[335825298,1724515843903,-500.0,0.00013698,2]
[335825300,1724515843912,-500.0,0.00013698,2]
[335825303,1724515843924,-500.0,0.00013698,2]
[335825304,1724515843935,-500.0,0.00013698,2]
[335825306,1724515843944,-500.0,0.00013698,2]
[335825308,1724515843954,-159.93009355,0.00013698,2]
[335825310,1724515843964,-500.0,0.00013698,2]
[335825312,1724515843974,-500.0,0.00013698,2]
[335825315,1724515843984,-500.0,0.00013698,2]
[335825316,1724515843993,-316.24143331,0.00013698,2]
[335825318,1724515844003,-500.0,0.00013698,2]
[335825320,1724515844013,-500.0,0.00013698,2]
[335825322,1724515844023,-2282.30050398,0.00013698,2]
[335825326,1724515844043,-169.65408639,0.00013673,2]
[335825328,1724515844053,-114.39949602,0.00013698,2]
[335825330,1724515844062,-713.1,0.00013698,2]
[335825332,1724515844072,-534.06379751,0.00013698,2]
[335825334,1724515844081,-500.0,0.00013698,2]
[335825336,1724515844091,-449.81063824,0.00013698,2]
[335825338,1724515844100,-500.0,0.00013698,2]
[335825339,1724515844109,-845.81,0.00013698,2]
[335825341,1724515844119,-500.0,0.00013698,2]
[335825343,1724515844129,-500.0,0.00013698,2]
[335825346,1724515844139,-500.0,0.00013698,2]
[335825348,1724515844148,-512.71688621,0.00013698,2]
[335825350,1724515844157,-500.0,0.00013698,2]
[335825352,1724515844167,-500.0,0.00013698,2]
[335825354,1724515844177,-500.0,0.00013698,2]
[335825356,1724515844188,-618.62,0.00013698,2]
[335825358,1724515844198,-500.0,0.00013698,2]
[335825360,1724515844208,-325.22299602,0.00013698,2]
[335825362,1724515844218,-500.0,0.00013698,2]
[335825364,1724515844227,-500.0,0.00013698,2]
[335825366,1724515844237,-500.0,0.00013698,2]
[335825368,1724515844248,-1776.46,0.00013698,2]
[335825370,1724515844258,-523.95976346,0.00013698,2]
[335825371,1724515844267,-500.0,0.00013698,2]
[335825373,1724515844277,-1338.77,0.00013698,2]
[335825374,1724515844288,-500.0,0.00013698,2]
[335825375,1724515844297,-742.12,0.00013698,2]
[335825376,1724515844306,-500.0,0.00013698,2]
[335825377,1724515844316,-689.41,0.00013698,2]
[335825378,1724515844326,-2028.43,0.00013698,2]
[335825379,1724515844335,-253.02972203,0.00013698,2]
[335825380,1724515844697,-27.67718072,0.00013698,2]
[335825383,1724515846341,-321.6055419,0.00013697,2]
[335825385,1724515846350,-8925.5237881,0.00013697,2]
[335825387,1724515846360,-219.29309725,0.00013698,2]
[335825389,1724515846369,-500.0,0.00013698,2]
[335825391,1724515846379,-500.0,0.00013698,2]
[335825393,1724515846388,-1516.06,0.00013698,2]
[335825395,1724515846398,-574.69944032,0.00013698,2]
[335825397,1724515846407,-1065.09,0.00013698,2]
[335825399,1724515846416,-1005.91,0.00013698,2]
[335825401,1724515846426,-500.0,0.00013698,2]
[335825402,1724515846440,-592.6,0.00013698,2]
[335825403,1724515846450,-500.0,0.00013698,2]
[335825404,1724515846459,-500.0,0.00013698,2]
[335825405,1724515846469,-522.33,0.00013698,2]
[335825406,1724515846478,-500.0,0.00013698,2]
[335825407,1724515846488,-500.0,0.00013698,2]
[335825408,1724515846498,-923.14,0.00013698,2]
[335825409,1724515846510,-500.0,0.00013698,2]
[335825410,1724515846520,-500.0,0.00013698,2]
[335825411,1724515846530,-500.0,0.00013698,2]
[335825412,1724515846539,-500.0,0.00013698,2]
[335825413,1724515846550,-575.23,0.00013698,2]
[335825414,1724515846560,-500.0,0.00013698,2]
[335825415,1724515846569,-500.0,0.00013698,2]
[335825416,1724515846578,-500.0,0.00013698,2]
[335825417,1724515846588,-782.9,0.00013698,2]
[335825418,1724515846599,-500.0,0.00013698,2]
[335825419,1724515846610,-1384.2,0.00013698,2]
[335825420,1724515846620,-500.0,0.00013698,2]
[335825421,1724515846631,-500.0,0.00013698,2]
[335825422,1724515846640,-1213.96,0.00013698,2]
[335825423,1724515846653,-536.77,0.00013698,2]
[335825424,1724515846665,-1218.81,0.00013698,2]
[335825425,1724515846675,-417.61929196,0.00013698,2]
[335825426,1724515846686,-1422.63,0.00013698,2]
[335825427,1724515846696,-500.0,0.00013698,2]
[335825428,1724515846705,-500.0,0.00013698,2]
[335825429,1724515846714,-500.0,0.00013698,2]
[335825430,1724515846723,-1156.97,0.00013698,2]
[335825431,1724515846732,-500.0,0.00013698,2]
[335825432,1724515846742,-890.82,0.00013698,2]
[335825433,1724515846754,-694.12,0.00013698,2]
[335825434,1724515846764,-535.02,0.00013698,2]
[335825435,1724515846773,-500.0,0.00013698,2]
[335825436,1724515846783,-712.41,0.00013698,2]
[335825437,1724515846792,-500.0,0.00013698,2]
[335825438,1724515846801,-500.0,0.00013698,2]
[335825439,1724515846810,-561.59264497,0.00013698,2]
[335825440,1724515846820,-500.0,0.00013698,2]
[335825441,1724515846830,-500.0,0.00013698,2]
[335825442,1724515846842,-613.25,0.00013698,2]
[335825443,1724515846857,-500.0,0.00013698,2]
[335825444,1724515846867,-372.73170538,0.00013698,2]
[335825445,1724515846876,-1172.23,0.00013698,2]
[335825446,1724515846886,-500.0,0.00013698,2]
[335825447,1724515846897,-500.0,0.00013698,2]
[335825448,1724515846907,-1324.85,0.00013698,2]
[335825449,1724515846916,-500.0,0.00013698,2]
[335825450,1724515846926,-531.47,0.00013698,2]
[335825451,1724515846937,-500.0,0.00013698,2]
[335825452,1724515846949,-1396.92,0.00013698,2]
[335825453,1724515846960,-500.0,0.00013698,2]
[335825454,1724515846970,-500.0,0.00013698,2]
[335825455,1724515846979,-617.41,0.00013698,2]
[335825456,1724515846989,-500.0,0.00013698,2]
[335825457,1724515846998,-500.0,0.00013698,2]
[335825458,1724515847008,-393.31312517,0.00013698,2]
[335825459,1724515847017,-500.0,0.00013698,2]
[335825460,1724515847027,-519.22,0.00013698,2]
[335825461,1724515847038,-797.81,0.00013698,2]
[335825462,1724515847050,-819.84,0.00013698,2]
[335825463,1724515847060,-500.0,0.00013698,2]
[335825464,1724515847072,-500.0,0.00013698,2]
[335825465,1724515847081,-500.0,0.00013698,2]
[335825466,1724515847091,-500.0,0.00013698,2]
[335825467,1724515847100,-600.1766045,0.00013698,2]
[335825468,1724515847109,-500.0,0.00013698,2]
[335825469,1724515847118,-500.0,0.00013698,2]
[335825470,1724515847127,-996.4,0.00013698,2]